fUSD/lending_fUSD_20260425
["ID","MTS","AMOUNT","RATE_DAILY","PERIOD"]
[421125680,1777111832985,-500.0,0.00010299,2]
[421125681,1777111832995,-500.0,0.00010299,2]
[421125682,1777111833004,-500.0,0.00010299,2]
[421125683,1777111833014,-333.34159226,0.00010299,2]
[421125684,1777111833024,-500.0,0.00010299,2]
[421125685,1777111833033,-500.0,0.00010299,2]
[421125686,1777111833043,-500.0,0.00010299,2]
[421125687,1777111833053,-500.0,0.00010299,2]
[421125688,1777111833062,-200.0,0.00010299,2]
[421125689,1777111833072,-500.0,0.00010299,2]
[421125690,1777111833082,-500.0,0.00010299,2]
[421125691,1777111833091,-4999.99,0.00010299,2]
[421125692,1777111833101,-9381.7,0.00010299,2]
[421125693,1777111833111,-20047.69,0.00010299,2]
[421125694,1777111833120,-707.65,0.00010299,2]
[421125695,1777111833130,-9999.99,0.00010299,2]
[421125696,1777111833140,-250.0,0.00010299,2]
[421125697,1777111833150,-689818.2329,0.000103,2]
[421125698,1777111833161,-150.0,0.00010304,2]
[421125699,1777111833170,-9211.34798985,0.00010349,2]
[421125700,1777111833180,-151.0,0.00010349,2]
[421125701,1777111833190,-500.0,0.00010373,2]
[421125702,1777111833200,-500.0,0.00010373,2]
[421125703,1777111833211,-500.0,0.00010373,2]
[421125704,1777111833221,-500.22615483,0.00010373,2]
[421125705,1777111833230,-500.0,0.00010373,2]
[421125706,1777111833240,-297.24673784,0.00010373,2]
[421125707,1777111833250,-572.09413596,0.00010373,2]
[421125708,1777111833260,-500.0,0.00010373,2]
[421125709,1777111833270,-500.0,0.00010373,2]
[421125710,1777111833281,-500.0,0.00010373,2]
[421125711,1777111833290,-500.0,0.00010373,2]
[421125712,1777111833300,-500.0,0.00010373,2]
[421125713,1777111833309,-478.37697268,0.00010373,2]
[421125714,1777111833319,-150.0,0.00010384,2]
[421125715,1777111833329,-150.0,0.00010384,2]
[421125716,1777111833339,-150.0,0.00010384,2]
[421125717,1777111833351,-240.30270347,0.00010384,2]
[421125718,1777111833360,-150.0,0.00010384,2]
[421125719,1777111833370,-268.99035583,0.0001039,2]
[421125720,1777111833380,-670.58624095,0.00010394,2]
[421125721,1777111833390,-200.0,0.00010394,2]
[421125722,1777111833399,-151.0,0.00010394,2]
[421125723,1777111833409,-1328.27659266,0.00010394,2]
[421125724,1777111833419,-151.0,0.00010394,2]
[421125725,1777111833429,-151.0,0.00010394,2]
[421125726,1777111833439,-151.0,0.00010394,2]
[421125727,1777111833448,-151.0,0.00010394,2]
[421125728,1777111833458,-151.0,0.00010394,2]
[421125729,1777111833467,-151.0,0.00010394,2]
[421125730,1777111833477,-151.0,0.00010394,2]
[421125731,1777111833487,-151.0,0.00010394,2]
[421125732,1777111833497,-151.0,0.00010394,2]
[421125733,1777111833507,-151.0,0.00010394,2]
[421125734,1777111833517,-151.0,0.00010394,2]
[421125735,1777111833527,-151.0,0.00010394,2]
[421125736,1777111833537,-5000.0,0.000104,2]
[421125737,1777111833547,-570.19125841,0.000104,2]
[421125738,1777111833557,-1372.96927684,0.000104,2]
[421125739,1777111833567,-33091.4848,0.000104,2]
[421125740,1777111833577,-2000.0,0.000104,2]
[421125741,1777111833587,-777719.68933188,0.000104,2]
[421125742,1777111833601,-76888.39833542,0.000104,2]
[421125743,1777111833613,-153444.91080673,0.000104,2]
[421125744,1777111833651,-1363.9028499,0.000104,2]
[421125745,1777111833664,-464.72178409,0.000104,2]
[421125746,1777111833675,-8644.86836957,0.000104,2]
[421125747,1777111833695,-250.0,0.000104,2]
[421125748,1777111833707,-673.97872682,0.000104,2]
[421125749,1777111833719,-2287.51677326,0.000104,2]
[421125750,1777111833753,-1251.8382809,0.000104,2]
[421125751,1777111833765,-1248.86929294,0.000104,2]
[421125752,1777111833778,-3623.97128579,0.000104,2]
[421125753,1777111833790,-546.3022,0.000104,2]
[421125758,1777111838505,-1221.80961954,0.000104,2]
[421125759,1777111838559,-5262.04689355,0.000104,2]
[421125760,1777111838572,-999.54,0.000104,2]
[421125761,1777111838612,-23155.3758884,0.000104,2]
[421125762,1777111838625,-638.40103627,0.000104,2]
[421125768,1777111841758,-15497.97035719,0.000104,2]
[421125769,1777111841771,-13441.12926979,0.000104,2]
[421125770,1777111841783,-14029.80278619,0.000104,2]
[421125771,1777111841795,-3963.85509281,0.000104,2]
[421125772,1777111841810,-14005.17690587,0.000104,2]
[421125773,1777111841844,-762.577,0.000104,2]
[421125774,1777111841856,-878.46768551,0.000104,2]
[421125792,1777111847068,-451.67652715,0.000104,2]
[421125794,1777111847283,-28335.68927665,0.000104,2]
[421125795,1777111847389,-318.36509326,0.000104,2]
[421125811,1777113032225,-225.34182188,8.901e-05,2]
[421125812,1777113032235,-150.0,8.901e-05,2]
[421125813,1777113032245,-3.00957419,9.702e-05,2]
[421125814,1777113032283,-873.43442581,9.702e-05,2]
[421125815,1777113032293,-674.56557419,9.79e-05,2]
[421125816,1777113032344,-25812.17893772,9.79e-05,2]
[421125817,1777113032353,-500.0,9.799e-05,2]
[421125818,1777113032363,-500.0,9.799e-05,2]
[421125819,1777113032373,-500.0,9.799e-05,2]
[421125820,1777113032383,-500.0,9.799e-05,2]
[421125821,1777113032393,-500.0,9.799e-05,2]
[421125822,1777113032402,-500.0,9.799e-05,2]
[421125823,1777113032411,-164.89462512,9.799e-05,2]
[421125824,1777113032421,-500.0,9.799e-05,2]
[421125825,1777113032431,-500.0,9.799e-05,2]
[421125826,1777113032441,-500.0,9.799e-05,2]
[421125827,1777113032451,-500.0,9.799e-05,2]
[421125828,1777113032461,-500.0,9.799e-05,2]
[421125829,1777113032471,-500.0,9.799e-05,2]
[421125830,1777113032483,-500.0,9.799e-05,2]
[421125831,1777113032493,-500.0,9.799e-05,2]
[421125832,1777113032503,-500.0,9.799e-05,2]
[421125833,1777113032513,-500.0,9.799e-05,2]
[421125834,1777113032523,-500.0,9.799e-05,2]
[421125835,1777113032533,-500.0,9.799e-05,2]
[421125836,1777113032543,-500.0,9.799e-05,2]
[421125837,1777113032554,-500.0,9.799e-05,2]
[421125838,1777113032565,-500.0,9.799e-05,2]
[421125839,1777113032575,-500.0,9.799e-05,2]
[421125840,1777113032585,-500.0,9.799e-05,2]
[421125841,1777113032594,-500.0,9.799e-05,2]
[421125842,1777113032604,-500.0,9.799e-05,2]
[421125843,1777113032615,-500.0,9.799e-05,2]
[421125844,1777113032625,-500.0,9.799e-05,2]
[421125845,1777113032635,-500.0,9.799e-05,2]
[421125846,1777113032644,-500.0,9.799e-05,2]
[421125847,1777113032654,-500.0,9.799e-05,2]
[421125848,1777113032664,-500.0,9.799e-05,2]
[421125849,1777113032674,-500.0,9.799e-05,2]
[421125850,1777113032683,-500.0,9.799e-05,2]
[421125851,1777113032693,-500.0,9.799e-05,2]
[421125852,1777113032703,-500.0,9.799e-05,2]
[421125853,1777113032713,-500.0,9.799e-05,2]
[421125854,1777113032723,-500.0,9.799e-05,2]
[421125855,1777113032733,-500.0,9.799e-05,2]
[421125856,1777113032743,-500.0,9.799e-05,2]
[421125857,1777113032752,-500.0,9.799e-05,2]
[421125858,1777113032762,-500.0,9.799e-05,2]
[421125859,1777113032772,-500.0,9.799e-05,2]
[421125860,1777113032782,-376.94579479,9.799e-05,2]
[421125861,1777113032792,-500.0,9.799e-05,2]
[421125863,1777113032802,-500.0,9.799e-05,2]
[421125865,1777113032812,-500.0,9.799e-05,2]
[421125867,1777113032822,-500.0,9.799e-05,2]
[421125870,1777113032832,-500.0,9.799e-05,2]
[421125872,1777113032842,-500.0,9.799e-05,2]
[421125873,1777113032851,-500.0,9.799e-05,2]
[421125874,1777113032861,-500.0,9.799e-05,2]
[421125875,1777113032870,-500.0,9.799e-05,2]
[421125876,1777113032880,-500.0,9.799e-05,2]
[421125877,1777113032890,-500.0,9.799e-05,2]
[421125878,1777113032900,-500.0,9.799e-05,2]
[421125879,1777113032910,-500.0,9.799e-05,2]
[421125880,1777113032920,-500.0,9.799e-05,2]
[421125881,1777113032930,-500.0,9.799e-05,2]
[421125882,1777113032940,-500.0,9.799e-05,2]
[421125883,1777113032949,-287.69457948,9.799e-05,2]
[421125884,1777113032959,-500.0,9.799e-05,2]
[421125885,1777113032969,-500.0,9.799e-05,2]
[421125886,1777113032979,-500.0,9.799e-05,2]
[421125887,1777113032989,-500.0,9.799e-05,2]
[421125888,1777113032999,-500.0,9.799e-05,2]
[421125889,1777113033009,-500.0,9.799e-05,2]
[421125890,1777113033019,-500.0,9.799e-05,2]
[421125891,1777113033029,-500.0,9.799e-05,2]
[421125892,1777113033039,-500.0,9.799e-05,2]
[421125893,1777113033049,-500.0,9.799e-05,2]
[421125894,1777113033058,-500.0,9.799e-05,2]
[421125895,1777113033068,-500.0,9.799e-05,2]
[421125896,1777113033078,-500.0,9.799e-05,2]
[421125897,1777113033089,-500.0,9.799e-05,2]
[421125898,1777113033100,-500.0,9.799e-05,2]
[421125899,1777113033110,-500.0,9.799e-05,2]
[421125900,1777113033120,-500.0,9.799e-05,2]
[421125901,1777113033129,-500.0,9.799e-05,2]
[421125902,1777113033139,-404.77093364,9.799e-05,2]
[421125903,1777113033149,-465.60852877,9.799e-05,2]
[421125904,1777113033159,-318.0889659,9.799e-05,2]
[421125905,1777113033168,-509.56384558,9.799e-05,2]
[421125906,1777113033178,-311.51115165,9.799e-05,2]
[421125907,1777113033188,-28961.44668174,9.8e-05,2]
[421125908,1777113033201,-145805.20603542,9.8e-05,2]
[421125909,1777113033212,-2134.0,9.8e-05,2]
[421125910,1777113033224,-1430.66631438,9.8e-05,2]
[421125912,1777113038649,-410.0850894,9.8e-05,2]
[421125913,1777113038662,-317.0,9.8e-05,2]
[421125914,1777113038713,-700.0,9.8e-05,2]
[421125915,1777113038726,-3962.2502192,9.8e-05,2]
[421126001,1777113040447,-9716.66574271,9.8e-05,2]
[421126002,1777113040614,-5821.44580929,9.8e-05,2]
[421126015,1777113043613,-7839.97237987,9.8e-05,2]
[421126018,1777113046586,-682.71705098,9.8e-05,2]
[421126019,1777113046650,-10935.78174382,9.8e-05,2]
[421126020,1777113046664,-1213.16,9.8e-05,2]
[421126022,1777113046826,-497.49951617,9.8e-05,2]
[421126024,1777113046840,-2900.0,9.8e-05,2]
[421126047,1777113120679,-153.45764577,9.797e-05,2]
[421126048,1777113120717,-9693.09470846,9.8e-05,2]
[421126049,1777113129415,-10000.01,9.69e-05,2]
[421126051,1777114231447,-150.0,8.704e-05,2]
[421126052,1777114231457,-150.0,8.704e-05,2]
[421126053,1777114231466,-150.0,8.704e-05,2]
[421126054,1777114231476,-150.0,8.704e-05,2]
[421126055,1777114231487,-150.0,8.704e-05,2]
[421126056,1777114231497,-539.0,9.397e-05,2]
[421126057,1777114231507,-4972.639356,9.424e-05,2]
[421126058,1777114231517,-500.0,9.425e-05,2]
[421126059,1777114231527,-1323.198,9.496e-05,2]
[421126060,1777114231537,-172.297,9.496e-05,2]
[421126061,1777114231547,-1200.0,9.498e-05,2]
[421126062,1777114231557,-791.16111,9.5e-05,2]
[421126063,1777114231567,-193.30559356,9.575e-05,2]
[421126064,1777114231576,-250.0,9.575e-05,2]
[421126065,1777114231586,-340.32,9.589e-05,2]
[421126066,1777114231596,-5000.0,9.59e-05,2]
[421126067,1777114231606,-83592.66800864,9.59e-05,2]
[421126068,1777114231617,-20394.39726441,9.59e-05,2]
[421126069,1777114231633,-7587.03091328,9.59e-05,2]
[421126070,1777114231648,-3860.07176387,9.59e-05,2]
[421126111,1777114240491,-5557.62130061,9.59e-05,2]
[421126112,1777114240504,-772.78,9.59e-05,2]
[421126115,1777114242700,-1739.25960549,9.59e-05,2]
[421126116,1777114242716,-1865.819527,9.59e-05,2]
[421126117,1777114242728,-1412.25320625,9.59e-05,2]
[421126118,1777114242753,-707.3898016,9.59e-05,2]
[421126119,1777114242765,-11177.15325286,9.59e-05,2]
[421126120,1777114242915,-394.17724166,9.59e-05,2]
[421126125,1777114246022,-54439.8029476,9.59e-05,2]
[421126126,1777114246127,-649.15400032,9.59e-05,2]
[421126129,1777114517781,-300.0,9.589e-05,2]
[421126130,1777114517811,-1200.0,9.589e-05,2]
[421126131,1777114517842,-300.0,9.589e-05,2]
[421126132,1777114517871,-300.0,9.589e-05,2]
[421126133,1777114517932,-3416.49073731,9.59e-05,2]
[421126134,1777114518091,-2383.51926269,9.59e-05,2]
[421126135,1777114518120,-783.50926269,9.59e-05,2]
[421126136,1777114518131,-250.0,9.59e-05,2]
[421126137,1777114518141,-165.0,9.59e-05,3]
[421126138,1777114518151,-155.0,9.59e-05,3]
[421126139,1777114518160,-160.0,9.59e-05,3]
[421126140,1777114518170,-5070.01,9.59e-05,2]
[421126141,1777114692335,-165.0,9.59e-05,3]
[421126142,1777114692366,-394.22758163,9.595e-05,2]
[421126143,1777114692396,-200.0,9.6e-05,2]
[421126144,1777114692854,-152.0,9.661e-05,7]
[421126145,1777114692889,-152.0,9.68e-05,7]
[421126146,1777114692918,-3153.11483674,9.68e-05,2]
[421126147,1777114692932,-165.0,9.68e-05,2]
[421126148,1777114692948,-394.22758163,9.68e-05,2]
[421126149,1777114692969,-200.0,9.68e-05,2]
[421126150,1777114693057,-152.0,9.68e-05,2]
[421126151,1777114693105,-656.09758163,9.68e-05,2]
[421126152,1777114693135,-1603.69,9.68e-05,2]
[421126153,1777114693164,-601.19,9.68e-05,2]
[421126154,1777114693194,-772.17,9.68e-05,2]
[421126155,1777114693224,-1159.69483674,9.68e-05,2]
[421126156,1777114693259,-414.32516326,9.68e-05,2]
[421126157,1777114693289,-499.99,9.68e-05,2]
[421126158,1777114693338,-0.02,9.68e-05,2]
[421126159,1777114693350,-152.0,9.68e-05,2]
[421126160,1777114693383,-152.04,9.68e-05,2]
[421126161,1777114693406,-4720.44,9.68e-05,2]
[421126162,1777114693439,-4975.49,9.68e-05,2]
[421126163,1777114693459,-150.99,9.68e-05,2]
[421126164,1777114693468,-299.99,9.68e-05,2]
[421126165,1777114693478,-205.11758163,9.68e-05,2]
[421126166,1777114693504,-1603.69,9.68e-05,2]
[421126167,1777114693515,-601.19,9.68e-05,2]
[421126168,1777114693531,-772.17,9.68e-05,2]
[421126169,1777114693547,-1574.02,9.68e-05,2]
[421126170,1777114693559,-414.32516326,9.68e-05,2]
[421126171,1777114693570,-499.99,9.68e-05,2]
[421126172,1777114693589,-8171.37967348,9.68e-05,2]
[421126173,1777114693601,-6158.10758163,9.68e-05,2]
[421126174,1777114693611,-150.0,9.689e-05,2]
[421126175,1777114693621,-153.84497308,9.689e-05,2]
[421126176,1777114693631,-3434.0,9.7e-05,2]
[421126177,1777114693641,-104.03744529,9.772e-05,2]
[421126178,1777114693704,-168.21255471,9.772e-05,2]
[421126179,1777114693715,-3065.7353504,9.796e-05,2]
[421126180,1777114693724,-6614.02209489,9.796e-05,2]
[421126181,1777114693775,-4975.49,9.796e-05,2]
[421126182,1777114693787,-49.03,9.796e-05,2]
[421126183,1777114693799,-10000.01,9.796e-05,2]
[421126184,1777114704231,-10000.01,9.796e-05,2]
[421126185,1777114704321,-10000.01,9.796e-05,2]
[421126186,1777114704427,-10000.01,9.796e-05,2]
[421126187,1777114704578,-10000.01,9.796e-05,2]
[421126188,1777114704704,-2311.49403831,9.796e-05,2]
[421126189,1777114704725,-2311.49403831,9.796e-05,2]
[421126190,1777114704737,-4851.78701769,9.796e-05,2]
[421126191,1777114704747,-525.23490569,9.796e-05,2]
[421126192,1777114704799,-613.40431361,9.796e-05,2]
[421126193,1777114713351,-152.0,9.798e-05,7]
[421126194,1777114713390,-152.0,9.798e-05,7]
[421126195,1777114713423,-3964.0212192,9.8e-05,2]
[421126196,1777114713453,-463.9675616,9.8e-05,2]
[421126197,1777114713467,-152.0,9.8e-05,2]
[421126198,1777114713479,-152.0,9.8e-05,2]
[421126199,1777114713505,-232.0324384,9.8e-05,2]
[421126200,1777114713516,-1108.36696826,9.8e-05,2]
[421126201,1777114713526,-500.0,9.8e-05,2]
[421126202,1777114713537,-161.0,9.81e-05,2]
[421126203,1777114713546,-213.89552016,9.825e-05,2]
[421126204,1777114713556,-538.61162808,9.83e-05,2]
[421126205,1777114713566,-253.0,9.837e-05,2]
[421126206,1777114713576,-578.20924308,9.965e-05,2]
[421126207,1777114713586,-226.66833246,9.965e-05,2]
[421126208,1777114713596,-152.23708876,9.965e-05,2]
[421126209,1777114713615,-47.76291124,9.965e-05,2]
[421126210,1777114713625,-952.23708876,9.965e-05,2]
[421126211,1777114719467,-376.0395039,9.965e-05,2]
[421126212,1777114719498,-365.2424774,9.965e-05,2]
[421126213,1777114719511,-376.0395039,9.965e-05,2]
[421126214,1777114719523,-8141.4065335,9.965e-05,2]
[421126215,1777114719532,-151.0,9.965e-05,2]
[421126216,1777114719541,-590.2819813,9.965e-05,2]
[421126233,1777115102682,150.0,8.605e-05,2]
[421126234,1777115106815,150.0,8.605e-05,2]
[421126235,1777115106963,150.0,8.605e-05,2]
[421126236,1777115113338,150.0,8.605e-05,2]
[421126237,1777115113897,150.0,8.605e-05,2]
[421126238,1777115114127,150.0,8.605e-05,2]
[421126239,1777115123120,150.0,8.605e-05,2]
[421126240,1777115124980,150.0,8.605e-05,2]
[421126241,1777115125271,150.0,8.605e-05,2]
[421126242,1777115125341,150.0,8.656e-05,2]
[421126308,1777115394243,500.0,0.000165,120]
[421126318,1777115431741,-150.0,8.706e-05,2]
[421126319,1777115431752,-150.0,8.742e-05,2]
[421126320,1777115431762,-150.0,8.756e-05,2]
[421126321,1777115431771,-150.0,8.807e-05,2]
[421126322,1777115431787,-150.0,8.857e-05,2]
[421126323,1777115431796,-150.0,8.879e-05,2]
[421126324,1777115431806,-150.0,8.907e-05,2]
[421126325,1777115431816,-150.0,8.924e-05,2]
[421126326,1777115431827,-150.0,8.924e-05,2]
[421126327,1777115431836,-150.0,8.958e-05,2]
[421126328,1777115431846,-150.0,9.008e-05,2]
[421126329,1777115431856,-150.0,9.015e-05,2]
[421126330,1777115431866,-150.0,9.058e-05,2]
[421126331,1777115431876,-150.0,9.084e-05,2]
[421126332,1777115431885,-68.09710004,9.109e-05,2]
[421126333,1777115431897,-81.90289996,9.109e-05,2]
[421126334,1777115431907,-150.0,9.152e-05,2]
[421126335,1777115431917,-150.0,9.159e-05,2]
[421126336,1777115431926,-34.17404571,9.209e-05,2]
[421126337,1777115431946,-115.82595429,9.209e-05,2]
[421126338,1777115431956,-150.0,9.243e-05,2]
[421126339,1777115431966,-150.0,9.243e-05,2]
[421126340,1777115431976,-150.0,9.26e-05,2]
[421126341,1777115431985,-150.0,9.288e-05,2]
[421126342,1777115431995,-150.0,9.31e-05,2]
[421126343,1777115432006,-150.0,9.36e-05,2]
[421126344,1777115432016,-500.0,9.402e-05,2]
[421126345,1777115432026,-150.0,9.411e-05,2]
[421126346,1777115432036,-150.0,9.425e-05,2]
[421126347,1777115432046,-1200.0,9.425e-05,2]
[421126348,1777115432056,-150.0,9.425e-05,2]
[421126349,1777115432066,-150.0,9.461e-05,2]
[421126350,1777115432076,-605.32830311,9.502e-05,2]
[421126351,1777115432089,-756.66569689,9.502e-05,2]
[421126352,1777115432099,-172.298,9.502e-05,2]
[421126353,1777115432110,-150.0,9.511e-05,2]
[421126355,1777115432120,-150.0,9.562e-05,2]
[421126358,1777115432129,-150.0,9.562e-05,2]
[421126361,1777115432139,-150.00000001,9.562e-05,2]
[421126362,1777115432150,-177.31547693,9.562e-05,2]
[421126363,1777115432160,-150.0,9.562e-05,2]
[421126364,1777115432174,-150.0,9.562e-05,2]
[421126365,1777115432184,-150.0,9.562e-05,2]
[421126366,1777115432195,-150.0,9.562e-05,2]
[421126367,1777115432205,-250.0,9.577e-05,2]
[421126368,1777115432215,-428.64252926,9.577e-05,2]
[421126369,1777115432225,-500.0,9.579e-05,2]
[421126370,1777115432236,-1093.83820704,9.579e-05,3]
[421126371,1777115432247,-1093.83820704,9.579e-05,3]
[421126372,1777115432256,-500.0,9.579e-05,2]
[421126373,1777115432266,-362.31119746,9.579e-05,2]
[421126374,1777115432276,-500.0,9.579e-05,2]
[421126375,1777115432287,-500.0,9.579e-05,2]
[421126376,1777115432297,-500.0,9.579e-05,2]
[421126377,1777115432307,-500.0,9.579e-05,2]
[421126378,1777115432318,-500.0,9.579e-05,2]
[421126379,1777115432328,-500.0,9.579e-05,2]
[421126380,1777115432337,-500.0,9.579e-05,2]
[421126381,1777115432347,-500.0,9.579e-05,2]
[421126382,1777115432357,-500.0,9.579e-05,2]
[421126383,1777115432368,-500.0,9.579e-05,2]
[421126384,1777115432378,-500.0,9.579e-05,2]
[421126385,1777115432388,-500.0,9.579e-05,2]
[421126386,1777115432398,-500.0,9.579e-05,2]
[421126387,1777115432407,-500.0,9.579e-05,2]
[421126388,1777115432417,-500.0,9.579e-05,2]
[421126389,1777115432428,-500.0,9.579e-05,2]
[421126390,1777115432439,-500.0,9.579e-05,2]
[421126391,1777115432449,-500.0,9.579e-05,2]
[421126392,1777115432459,-500.0,9.579e-05,2]
[421126393,1777115432469,-500.0,9.579e-05,2]
[421126394,1777115432479,-500.0,9.579e-05,2]
[421126395,1777115432490,-500.0,9.579e-05,2]
[421126396,1777115432500,-500.0,9.579e-05,2]
[421126397,1777115432510,-500.0,9.579e-05,2]
[421126398,1777115432520,-500.0,9.579e-05,2]
[421126399,1777115432530,-500.0,9.579e-05,2]
[421126400,1777115432541,-500.0,9.579e-05,2]
[421126401,1777115432552,-500.0,9.579e-05,2]
[421126402,1777115432562,-500.0,9.579e-05,2]
[421126403,1777115432572,-500.0,9.579e-05,2]
[421126404,1777115432582,-500.0,9.579e-05,2]
[421126405,1777115432592,-500.0,9.579e-05,2]
[421126406,1777115432602,-500.0,9.579e-05,2]
[421126407,1777115432611,-500.0,9.579e-05,2]
[421126408,1777115432621,-500.0,9.579e-05,2]
[421126409,1777115432630,-500.0,9.579e-05,2]
[421126410,1777115432640,-500.0,9.579e-05,2]
[421126411,1777115432650,-500.0,9.579e-05,2]
[421126412,1777115432660,-500.0,9.579e-05,2]
[421126413,1777115432670,-500.0,9.579e-05,2]
[421126414,1777115433125,-500.0,9.579e-05,2]
[421126415,1777115433136,-500.0,9.579e-05,2]
[421126416,1777115433146,-500.0,9.579e-05,2]
[421126417,1777115433156,-500.0,9.579e-05,2]
[421126418,1777115433166,-500.0,9.579e-05,2]
[421126419,1777115433177,-154.84318112,9.579e-05,2]
[421126420,1777115433187,-500.0,9.579e-05,2]
[421126421,1777115433196,-500.0,9.579e-05,2]
[421126422,1777115433206,-500.0,9.579e-05,2]
[421126423,1777115433216,-500.0,9.579e-05,2]
[421126424,1777115433226,-500.0,9.579e-05,2]
[421126425,1777115433236,-500.0,9.579e-05,2]
[421126426,1777115433245,-500.0,9.579e-05,2]
[421126427,1777115433255,-500.0,9.579e-05,2]
[421126428,1777115433265,-500.0,9.579e-05,2]
[421126429,1777115433275,-500.0,9.579e-05,2]
[421126430,1777115433284,-500.0,9.579e-05,2]
[421126431,1777115433294,-500.0,9.579e-05,2]
[421126432,1777115433303,-500.0,9.579e-05,2]
[421126433,1777115433313,-500.0,9.579e-05,2]
[421126434,1777115433323,-500.0,9.579e-05,2]
[421126435,1777115433332,-500.0,9.579e-05,2]
[421126436,1777115433342,-470.19733622,9.579e-05,2]
[421126437,1777115433352,-500.0,9.579e-05,2]
[421126438,1777115433362,-500.0,9.579e-05,2]
[421126439,1777115433372,-500.0,9.579e-05,2]
[421126440,1777115433382,-500.0,9.579e-05,2]
[421126441,1777115433391,-500.0,9.579e-05,2]
[421126442,1777115433400,-500.0,9.579e-05,2]
[421126443,1777115433410,-648.64872892,9.579e-05,2]
[421126444,1777115433420,-499.99999999,9.579e-05,2]
[421126445,1777115433430,-500.0,9.579e-05,2]
[421126446,1777115433439,-500.0,9.579e-05,2]
[421126447,1777115433448,-500.0,9.579e-05,2]
[421126448,1777115433458,-267.34793762,9.579e-05,2]
[421126449,1777115433468,-500.0,9.579e-05,2]
[421126450,1777115433477,-611.08821602,9.579e-05,2]
[421126451,1777115433487,-500.0,9.579e-05,2]
[421126452,1777115433496,-181.9110341,9.579e-05,2]
[421126453,1777115433506,-1532.0,9.58e-05,5]
[421126454,1777115433516,-900.1548,9.58e-05,2]
[421126455,1777115433526,-68205.34500432,9.58e-05,2]
[421126456,1777115433539,-112763.23720926,9.58e-05,2]
[421126457,1777115433551,-5783.70838631,9.58e-05,2]
[421126458,1777115433562,-3440.12665687,9.58e-05,2]
[421126459,1777115433574,-374.94758386,9.58e-05,2]
[421126464,1777115437856,-6604.73662505,9.58e-05,2]
[421126466,1777115437910,-3469.7027034,9.58e-05,2]
[421126467,1777115437921,-1360.50412504,9.58e-05,2]
[421126468,1777115438225,-580.23789574,9.58e-05,2]
[421126483,1777115440004,-774.0,9.58e-05,2]
[421126485,1777115440702,-327.77208273,9.58e-05,2]
[421126494,1777115442989,-158330.01948414,9.58e-05,2]
[421126495,1777115443096,-787.0,9.58e-05,2]
[421126496,1777115443113,-1415.239929,9.58e-05,2]
[421126505,1777115445928,-5532.0,9.58e-05,2]
[421126508,1777115552796,500.0,8.606e-05,2]
[421126511,1777115587562,164.0,8.606e-05,3]
[421126512,1777115647644,164.0,8.606e-05,3]
[421126513,1777115708192,164.0,8.606e-05,3]
[421126522,1777116313818,150.0,8.532e-05,2]
[421126523,1777116314162,150.0,8.532e-05,2]
[421126524,1777116316199,150.0,8.532e-05,2]
[421126525,1777116316231,150.0,8.532e-05,2]
[421126526,1777116320560,150.0,8.532e-05,2]
[421126527,1777116320857,150.0,8.532e-05,2]
[421126528,1777116327621,150.0,8.532e-05,2]
[421126529,1777116331711,150.0,8.532e-05,2]
[421126530,1777116331976,150.0,8.532e-05,2]
[421126531,1777116332044,150.0,8.595e-05,2]
[421126532,1777116332356,150.0,8.658e-05,2]
[421126536,1777116632058,-150.0,8.721e-05,2]
[421126537,1777116632069,-150.0,8.768e-05,2]
[421126538,1777116632080,-150.0,8.784e-05,2]
[421126539,1777116632090,-400.0,8.8e-05,3]
[421126540,1777116632100,-1.28410069,8.847e-05,2]
[421126541,1777116632117,-148.71589931,8.847e-05,2]
[421126542,1777116632128,-150.0,8.847e-05,2]
[421126543,1777116632138,-150.0,8.847e-05,2]
[421126544,1777116632149,-60.47607588,8.9e-05,3]
[421126545,1777116632161,-717.79063966,8.9e-05,3]
[421126546,1777116632174,-21.73328446,8.9e-05,3]